bitfinex-derivatives/quotes_BTCF0:USTF0_20250830
["timestamp","ask_amount","ask_price","bid_price","bid_amount"]
[1756569477303,0.05606693,108900.0,108890.0,2.16302162]
[1756569479201,0.05606693,108900.0,108890.0,1.91302162]
[1756569480805,0.05606693,108900.0,108890.0,1.07502162]
[1756569481001,0.05606693,108900.0,108890.0,1.91294162]
[1756569482103,0.10561236,108900.0,108890.0,1.91294162]
[1756569484009,0.07088236,108900.0,108890.0,1.91294162]
[1756569484213,0.07088236,108900.0,108890.0,1.07502162]
[1756569484413,0.07088236,108900.0,108890.0,1.91294162]
[1756569485417,0.04954543,108900.0,108890.0,1.91294162]
[1756569485711,0.07089191,108900.0,108890.0,1.91294162]
[1756569486417,0.13301191,108900.0,108890.0,1.55210162]
[1756569487319,0.13301191,108900.0,108890.0,1.91290162]
[1756569488023,0.09571191,108900.0,108890.0,1.91290162]
[1756569489222,0.13301191,108900.0,108890.0,1.91290162]
[1756569489922,0.13301191,108900.0,108890.0,1.07502162]
[1756569490122,0.13301191,108900.0,108890.0,1.91290162]
[1756569491925,0.13301191,108900.0,108890.0,1.55206162]
[1756569493425,0.13301191,108900.0,108890.0,1.53371967]
[1756569493616,0.13301191,108900.0,108890.0,1.89451967]
[1756569494925,0.09571191,108900.0,108890.0,1.05667967]
[1756569495129,0.09571191,108900.0,108890.0,1.89447967]
[1756569495825,0.09571191,108900.0,108890.0,1.53367967]
[1756569496026,0.11626383,108900.0,108890.0,1.89447967]
[1756569500527,0.11626725,108900.0,108890.0,1.89447967]
[1756569503427,0.09144725,108900.0,108890.0,1.89447967]
[1756569510534,0.09144725,108900.0,108890.0,1.05667967]
[1756569510737,0.09144725,108900.0,108890.0,1.89427967]
[1756569513132,0.09144725,108900.0,108890.0,1.05667967]
[1756569513339,0.09144725,108900.0,108890.0,1.89423967]
[1756569516038,0.09144725,108900.0,108890.0,1.05667967]
[1756569516239,0.09144725,108900.0,108890.0,1.89419967]
[1756569522939,0.10337964,108910.0,108890.0,2.54591478]
[1756569522940,0.04959624,108910.0,108890.0,2.54591478]
[1756569523143,0.04959624,108910.0,108900.0,1.29044543]
[1756569523444,0.07009923,108910.0,108900.0,1.29044543]
[1756569524337,0.02050299,108910.0,108900.0,2.12788543]
[1756569525441,0.02050299,108910.0,108900.0,1.29044543]
[1756569525649,0.02050299,108910.0,108900.0,2.12784543]
[1756569526446,0.02050299,108910.0,108900.0,2.12780543]
[1756569527949,0.02050299,108910.0,108900.0,1.29044543]
[1756569528150,0.02050299,108910.0,108900.0,2.12780543]
[1756569530740,0.02050299,108910.0,108900.0,1.76696543]
[1756569530948,0.02050299,108910.0,108900.0,0.92964543]
[1756569531149,0.04509299,108910.0,108900.0,1.76692543]
[1756569534351,0.02050299,108910.0,108900.0,2.12772543]
[1756569535051,0.04142684,108910.0,108900.0,2.12772543]
[1756569538049,0.04142593,108910.0,108900.0,2.12772543]
[1756569539153,0.04142593,108910.0,108900.0,1.29044543]
[1756569539354,0.04142593,108910.0,108900.0,2.12760543]
[1756569543157,0.09099308,108910.0,108900.0,2.12760543]
[1756569544558,0.09099308,108910.0,108900.0,1.29044543]
[1756569544747,0.12637308,108910.0,108900.0,1.76672543]
[1756569545058,0.09099308,108910.0,108900.0,1.76672543]
[1756569545260,0.11529308,108910.0,108900.0,0.92964543]
[1756569545556,0.11529308,108910.0,108900.0,1.76672543]
[1756569546056,0.11529308,108910.0,108900.0,1.76668543]
[1756569546258,0.15067308,108910.0,108900.0,1.76668543]
[1756569546457,0.15067308,108910.0,108900.0,1.45680362]
[1756569546861,0.15067308,108910.0,108900.0,0.61976362]
[1756569547057,0.15067308,108910.0,108900.0,1.45680362]
[1756569547958,0.10110593,108910.0,108900.0,1.45680362]
[1756569548356,0.15068739,108910.0,108900.0,1.45680362]
[1756569556865,0.10110593,108910.0,108900.0,1.45680362]
[1756569557079,0.115326,108910.0,108900.0,1.45680362]
[1756569557778,0.150706,108910.0,108900.0,1.45680362]
[1756569558277,0.15060773,108910.0,108900.0,1.45680362]
[1756569559778,0.11522773,108910.0,108900.0,1.45680362]
[1756569560778,0.15060773,108910.0,108900.0,1.45680362]
[1756569561680,0.11522773,108910.0,108900.0,1.45680362]
[1756569562677,0.06562766,108910.0,108900.0,1.45680362]
[1756569562882,0.10100766,108910.0,108900.0,1.45680362]
[1756569563185,0.10100766,108910.0,108900.0,1.45656362]
[1756569565184,0.06562766,108910.0,108900.0,1.45656362]
[1756569568485,0.11523128,108910.0,108900.0,1.45656362]
[1756569569185,0.06562766,108910.0,108900.0,1.45656362]
[1756569569585,0.11523201,108910.0,108900.0,1.45656362]
[1756569572487,0.06562766,108910.0,108900.0,1.45656362]
[1756569573592,0.09980766,108910.0,108890.0,0.43391605]
[1756569573888,0.07412738,108900.0,108890.0,0.43391605]
[1756569574091,0.09495205,108900.0,108890.0,1.27051605]
[1756569574492,0.07043205,108900.0,108890.0,0.43391605]
[1756569574683,0.07043205,108900.0,108890.0,1.27151605]
[1756569574882,0.04960738,108900.0,108890.0,1.27151605]
[1756569575083,0.07043205,108900.0,108890.0,1.89127967]
[1756569575589,0.04960738,108900.0,108890.0,1.89327967]
[1756569575890,0.07043205,108900.0,108890.0,1.05667967]
[1756569576086,0.07043205,108900.0,108890.0,1.89327967]
[1756569576286,0.04960738,108900.0,108890.0,1.89327967]
[1756569576589,0.07043205,108900.0,108890.0,1.89327967]
[1756569576784,0.04960738,108900.0,108890.0,1.05667967]
[1756569577089,0.04960738,108900.0,108890.0,2.20316148]
[1756569577295,0.07043205,108900.0,108890.0,2.20316148]
[1756569577589,0.04960738,108900.0,108890.0,2.20316148]
[1756569577786,0.07043205,108900.0,108890.0,1.89327967]
[1756569577978,0.04960738,108900.0,108890.0,2.20316148]
[1756569578185,0.07043205,108900.0,108890.0,2.20316148]
[1756569578686,0.04960738,108900.0,108890.0,2.20316148]
[1756569578885,0.07043205,108900.0,108890.0,2.20316148]
[1756569579085,0.04960738,108900.0,108890.0,2.20316148]
[1756569579286,0.07043205,108900.0,108890.0,2.20316148]
[1756569579487,0.04960738,108900.0,108890.0,2.20316148]
[1756569579682,0.07043205,108900.0,108890.0,2.20316148]
[1756569579882,0.04960738,108900.0,108890.0,2.20316148]
[1756569580087,0.02082467,108900.0,108890.0,2.20316148]
[1756569580491,0.09093504,108910.0,108890.0,1.89327967]
[1756569580792,0.14963504,108910.0,108900.0,0.3608]
[1756569581799,0.14963504,108910.0,108900.0,0.98056362]
[1756569588996,0.14963504,108910.0,108900.0,0.3608]
[1756569589196,0.14963504,108910.0,108900.0,1.81716362]
[1756569590200,0.12913205,108910.0,108900.0,1.81716362]
[1756569592497,0.07952467,108910.0,108900.0,1.81716362]
[1756569592797,0.07952467,108910.0,108900.0,0.98056362]
[1756569592998,0.07952467,108910.0,108900.0,1.81716362]
[1756569597104,0.12912843,108910.0,108900.0,1.81716362]
[1756569597301,0.42693695,108940.0,108910.0,0.0918163]
[1756569597500,0.02079275,108940.0,108930.0,0.3608]
[1756569597707,0.02079275,108940.0,108930.0,0.6108]
[1756569598197,0.02079275,108940.0,108930.0,0.71187977]
[1756569598604,0.02179275,108940.0,108930.0,1.63224483]
[1756569598799,0.02179275,108940.0,108930.0,2.46880483]
[1756569599205,0.02179275,108940.0,108930.0,2.21880483]
[1756569599406,0.02179275,108940.0,108930.0,0.98056362]
[1756569599702,0.02079275,108940.0,108930.0,1.81708362]
[1756569599904,0.60519456,108940.0,108920.0,2.41688181]
[1756569600206,0.03418,108930.0,108920.0,2.41688181]
[1756569600603,0.03418,108930.0,108920.0,1.7462]
[1756569601293,0.03418,108930.0,108920.0,1.7472]
[1756569601699,0.05734,108930.0,108920.0,0.003]
[1756569601899,0.05734,108930.0,108920.0,0.00759]
[1756569602107,0.66814,108930.0,108920.0,0.00759]
[1756569602704,0.66814,108930.0,108920.0,0.32663]
[1756569604407,0.66814,108930.0,108920.0,0.00759]
[1756569604604,0.66814,108930.0,108920.0,0.63311]
[1756569604808,0.66814,108930.0,108920.0,0.85279]
[1756569605308,0.66814,108930.0,108920.0,0.00759]
[1756569605510,0.66814,108930.0,108920.0,0.85279]
[1756569605911,0.66814,108930.0,108920.0,0.85163]
[1756569606211,0.66814,108930.0,108920.0,0.00459]
[1756569606415,0.66814,108930.0,108920.0,0.67443]
[1756569606613,0.66814,108930.0,108920.0,0.84951]
[1756569610815,0.66814,108930.0,108920.0,0.00459]
[1756569611413,0.68836496,108930.0,108920.0,0.00459]
[1756569612117,0.68936496,108930.0,108920.0,0.00459]
[1756569612315,0.69136496,108930.0,108920.0,0.00459]
[1756569621125,0.69136496,108930.0,108890.0,2.32919961]
[1756569621324,0.06029,108910.0,108900.0,0.85557]
[1756569621520,0.08051496,108910.0,108900.0,0.85557]
[1756569621723,0.10123641,108910.0,108900.0,0.85557]
[1756569623121,0.10123641,108910.0,108900.0,0.92816512]
[1756569631737,0.10123641,108910.0,108900.0,1.01998892]
[1756569632929,0.10123641,108910.0,108900.0,0.92816512]
[1756569633131,0.10123641,108910.0,108900.0,0.08452512]
[1756569633339,0.71203641,108910.0,108900.0,0.08452512]
[1756569633638,0.7211569,108910.0,108900.0,0.92740512]
[1756569634245,0.7221569,108910.0,108900.0,0.92740512]
[1756569634436,0.7231569,108910.0,108900.0,0.92740512]
[1756569636141,0.7231569,108910.0,108900.0,0.08452512]
[1756569636341,0.77261884,108910.0,108900.0,0.92712512]
[1756569637041,0.77261884,108910.0,108900.0,0.08452512]
[1756569637244,0.77261884,108910.0,108900.0,0.92732512]
[1756569638237,0.77261884,108910.0,108900.0,0.07993512]
[1756569638439,0.77261884,108910.0,108900.0,0.92265512]
[1756569639442,0.77271722,108910.0,108900.0,0.92265512]
[1756569639636,0.47325528,108910.0,108900.0,0.92265512]
[1756569640644,0.47325528,108910.0,108900.0,0.92724512]
[1756569641843,0.52271722,108910.0,108900.0,0.92724512]
[1756569642244,0.77271722,108910.0,108900.0,0.07993512]
[1756569644244,0.77271722,108910.0,108900.0,0.07259512]
[1756569644440,0.73558722,108910.0,108890.0,0.50887]
[1756569644747,0.4225,108900.0,108890.0,0.51621]
[1756569644945,0.44282334,108900.0,108890.0,0.51621]
[1756569646140,0.44282334,108900.0,108890.0,0.01193]
[1756569646346,0.49228528,108900.0,108890.0,0.01193]
[1756569646638,0.49228528,108900.0,108890.0,0.08643444]
[1756569646837,0.49228528,108900.0,108890.0,0.01193]
[1756569651145,0.49228528,108900.0,108890.0,0.08692663]
[1756569651948,0.49228528,108900.0,108890.0,0.08233663]
[1756569657657,0.49228528,108900.0,108890.0,0.08692663]
[1756569658155,0.44282334,108900.0,108890.0,0.08692663]
[1756569658352,0.38112334,108900.0,108890.0,0.44718806]
[1756569659252,0.02032334,108900.0,108890.0,0.55798806]
[1756569661254,0.02032334,108900.0,108890.0,1.39878806]
[1756569662255,0.02032334,108900.0,108890.0,0.55798806]
[1756569662556,0.02032334,108900.0,108890.0,1.39878806]
[1756569664054,0.02032334,108900.0,108890.0,0.55798806]
[1756569664357,0.04354334,108900.0,108890.0,0.55798806]
[1756569664559,0.04354334,108900.0,108890.0,1.39862806]
[1756569665057,0.02032334,108900.0,108890.0,1.39862806]
[1756569665459,0.02032334,108900.0,108890.0,1.39854806]
[1756569667157,0.04354334,108900.0,108890.0,0.55798806]
[1756569667356,0.04354334,108900.0,108890.0,1.39830806]
[1756569668669,0.07792334,108900.0,108890.0,0.53955823]
[1756569668858,0.07792334,108900.0,108890.0,0.08692663]
[1756569669058,0.07792334,108900.0,108890.0,0.92712663]
[1756569669564,0.07792334,108900.0,108890.0,0.08692663]
[1756569669767,0.07792334,108900.0,108890.0,0.92712663]
[1756569670264,0.07792334,108900.0,108890.0,0.92708663]
[1756569670664,0.07792334,108900.0,108890.0,0.92704663]
[1756569670854,0.43872334,108900.0,108890.0,0.92704663]
[1756569673266,0.43872334,108900.0,108890.0,1.01887773]
[1756569673961,0.43872334,108900.0,108890.0,0.17875773]
[1756569674167,0.43872334,108900.0,108890.0,1.30672663]
[1756569675764,0.07792334,108900.0,108890.0,1.30672663]
[1756569675971,0.43872334,108900.0,108890.0,1.30672663]
[1756569677967,0.43872334,108900.0,108890.0,1.30632663]
[1756569678772,0.43872334,108900.0,108890.0,1.39815773]
[1756569679468,0.43872334,108900.0,108890.0,1.30632663]
[1756569688183,0.07792334,108900.0,108890.0,1.30632663]
[1756569688781,0.43872334,108900.0,108890.0,1.30632663]
[1756569688982,0.07799476,108900.0,108890.0,1.30632663]
[1756569691185,0.04361476,108900.0,108890.0,1.30632663]
[1756569691378,0.44100476,108900.0,108890.0,1.30632663]
[1756569693584,0.40441476,108900.0,108890.0,1.30632663]
[1756569693773,0.38119476,108900.0,108890.0,1.30632663]
[1756569695287,0.02039476,108900.0,108890.0,1.30632663]
[1756569695785,0.02039476,108900.0,108890.0,1.32477035]
[1756569700294,0.08164476,108900.0,108890.0,0.48537035]
[1756569700490,0.08164476,108900.0,108890.0,1.32369035]
[1756569701198,0.08164476,108900.0,108890.0,1.32365035]
[1756569703000,0.08164476,108900.0,108890.0,1.32385035]
[1756569703201,0.04505476,108900.0,108890.0,1.32385035]
[1756569704005,0.08164476,108900.0,108890.0,0.48537035]
[1756569704301,0.08164476,108900.0,108890.0,1.32381035]
[1756569708103,0.04505476,108900.0,108890.0,1.32381035]
[1756569708799,0.08164476,108900.0,108890.0,1.32381035]
[1756569713207,0.04505476,108900.0,108890.0,1.32381035]
[1756569717003,0.02039476,108900.0,108890.0,1.32381035]
[1756569719607,0.04505476,108900.0,108890.0,0.48537035]
[1756569719808,0.40585476,108900.0,108890.0,1.32333035]
[1756569720809,0.44244476,108900.0,108890.0,1.32333035]
[1756569721708,0.44244476,108900.0,108890.0,0.48537035]
[1756569721910,0.43098339,108910.0,108900.0,0.03529]
[1756569722110,0.45531339,108910.0,108900.0,1.29855319]
[1756569722711,0.09451339,108910.0,108900.0,1.29855319]
[1756569722911,0.09551339,108910.0,108900.0,1.29855319]
[1756569723412,0.09551339,108910.0,108900.0,0.98855319]
[1756569723710,0.09551339,108910.0,108900.0,1.32855319]
[1756569723910,0.13190339,108910.0,108900.0,1.32855319]
[1756569724112,0.13290339,108910.0,108900.0,1.32855319]
[1756569726313,0.13290339,108910.0,108900.0,1.03855319]
[1756569726509,0.09651339,108910.0,108900.0,1.72935319]
[1756569726910,0.13290339,108910.0,108900.0,1.72935319]
[1756569727408,0.45576206,108920.0,108900.0,1.72935319]
[1756569727608,0.48009206,108920.0,108910.0,0.67866546]
[1756569727818,0.48009206,108920.0,108910.0,1.51662546]
[1756569728715,0.48109206,108920.0,108910.0,1.51662546]
[1756569729616,0.12129206,108920.0,108910.0,1.51662546]
[1756569729811,0.12129206,108920.0,108910.0,1.87662546]
[1756569730117,0.12029206,108920.0,108910.0,1.87662546]
[1756569730320,0.12129206,108920.0,108910.0,1.87662546]
[1756569730816,0.12129206,108920.0,108910.0,1.03866546]
[1756569731017,0.12129206,108920.0,108910.0,1.87662546]
[1756569731818,0.12129206,108920.0,108910.0,1.51662546]
[1756569732018,0.12129206,108920.0,108910.0,1.84662546]
[1756569733818,0.14156216,108920.0,108910.0,1.84662546]
[1756569735320,0.14156216,108920.0,108910.0,1.88662546]
[1756569736321,0.14156216,108920.0,108910.0,1.51662546]
[1756569737113,0.09606204,108920.0,108910.0,1.84662546]
[1756569737423,0.07173204,108920.0,108910.0,2.15651319]
[1756569738620,0.07173204,108920.0,108910.0,1.84651319]
[1756569738815,0.07173204,108920.0,108910.0,2.16651319]
[1756569741218,0.0222701,108920.0,108910.0,2.16651319]
[1756569741925,0.05146194,108920.0,108910.0,2.16651319]
[1756569742127,0.07173204,108920.0,108910.0,2.16651319]
[1756569742326,0.0222701,108920.0,108910.0,2.16651319]
[1756569743528,0.04259216,108920.0,108910.0,2.16651319]
[1756569745224,0.04259216,108920.0,108910.0,1.32855319]
[1756569745424,0.04259216,108920.0,108910.0,2.16647319]
[1756569745827,0.04259216,108920.0,108910.0,1.85658546]
[1756569746027,0.04259216,108920.0,108910.0,1.53658546]
[1756569746226,0.04259216,108920.0,108910.0,1.84658546]
[1756569746628,0.04259216,108920.0,108910.0,2.15647319]
[1756569747726,0.10331216,108920.0,108910.0,0.89677]
[1756569747930,0.10331216,108920.0,108910.0,0.67866546]
[1756569748228,0.10331216,108920.0,108910.0,1.51654546]
[1756569748628,0.06692216,108920.0,108910.0,1.51654546]
[1756569750332,0.06692216,108920.0,108910.0,0.67866546]
[1756569750531,0.06692216,108920.0,108910.0,1.51654546]
[1756569751132,0.06692216,108920.0,108910.0,1.88654546]
[1756569753030,0.04665206,108920.0,108910.0,1.88654546]
[1756569753234,0.06682594,108920.0,108910.0,1.88654546]
[1756569753438,0.04249594,108920.0,108910.0,1.88654546]
[1756569754934,0.04249594,108920.0,108910.0,1.04866546]
[1756569755135,0.04249594,108920.0,108910.0,1.88654546]
[1756569758935,0.04249594,108920.0,108910.0,1.51654546]
[1756569759135,0.04249594,108920.0,108910.0,1.86654546]
[1756569759436,0.04249594,108920.0,108910.0,1.02866546]
[1756569759640,0.04249594,108920.0,108910.0,1.86650546]
[1756569759940,0.04249594,108920.0,108910.0,1.51650546]
[1756569760239,0.04249594,108920.0,108910.0,1.87650546]
[1756569762439,0.4393304,108930.0,108920.0,0.06083]
[1756569762640,0.4634604,108930.0,108920.0,0.99049319]
[1756569764039,0.1026604,108930.0,108920.0,0.99049319]
[1756569764242,0.1026604,108930.0,108920.0,1.01049319]
[1756569767338,0.1375804,108930.0,108920.0,1.01049319]
[1756569767545,0.1026604,108930.0,108920.0,1.01049319]
[1756569768444,0.1026604,108930.0,108920.0,1.37049319]
[1756569771841,0.1026604,108930.0,108920.0,1.01049319]
[1756569772743,0.1026604,108930.0,108920.0,0.06083]
[1756569773045,0.1026604,108930.0,108920.0,1.82825319]
[1756569774347,0.12280019,108930.0,108920.0,1.82825319]
[1756569775448,0.12280004,108930.0,108920.0,1.82825319]
[1756569779549,0.09867004,108930.0,108920.0,1.82825319]
[1756569780050,0.09867004,108930.0,108920.0,1.84825319]
[1756569780643,0.41026194,108940.0,108920.0,2.79905319]
[1756569780849,0.43066948,108940.0,108930.0,0.68060546]
[1756569781050,0.43066948,108940.0,108930.0,0.70060546]
[1756569781253,0.43066948,108940.0,108930.0,1.53856546]
[1756569781441,0.06986948,108940.0,108930.0,2.43925319]
[1756569781641,0.06986948,108940.0,108930.0,2.78925319]
[1756569781642,0.01719948,108940.0,108930.0,2.78925319]
[1756569782046,0.01719948,108940.0,108930.0,2.79845677]
[1756569782247,0.01719948,108940.0,108930.0,2.14932546]
[1756569782543,0.01719948,108940.0,108930.0,2.48980546]
[1756569782748,0.01719948,108940.0,108930.0,2.48976546]
[1756569783155,0.01719948,108940.0,108930.0,2.12976546]
[1756569783452,0.01719948,108940.0,108930.0,2.48976546]
[1756569784852,0.01719948,108940.0,108930.0,1.04140546]
[1756569784853,0.05178948,108940.0,108930.0,1.04140546]
[1756569785054,0.43715948,108940.0,108930.0,1.51868546]
[1756569785353,0.68715948,108940.0,108930.0,0.68060546]
[1756569785656,0.68715948,108940.0,108930.0,1.51876546]
[1756569785953,0.68715948,108940.0,108930.0,1.20887773]
[1756569786153,0.68715948,108940.0,108930.0,0.37071773]
[1756569788748,0.68715948,108940.0,108930.0,0.68060546]
[1756569789856,0.68715948,108940.0,108930.0,1.51888546]
[1756569792660,0.70696173,108940.0,108930.0,1.51888546]
[1756569794467,0.70696173,108940.0,108930.0,0.89911]
[1756569794672,0.70696173,108940.0,108930.0,0.06083]
[1756569794864,0.70696173,108940.0,108930.0,1.35712546]
[1756569801669,0.756477,108940.0,108930.0,1.35712546]
[1756569802373,0.395677,108940.0,108930.0,1.35712546]
[1756569802673,0.361087,108940.0,108930.0,1.35712546]
[1756569802873,0.395677,108940.0,108930.0,1.35712546]
[1756569812180,0.3956612,108940.0,108930.0,1.35712546]
[1756569813084,0.3956612,108940.0,108930.0,0.73735]
[1756569813379,0.3956612,108940.0,108930.0,1.35712546]
[1756569813982,0.3956612,108940.0,108930.0,0.68060546]
[1756569814183,0.3956612,108940.0,108930.0,1.51832546]
[1756569816673,0.7564612,108940.0,108930.0,1.51832546]
[1756569817684,0.73667475,108940.0,108930.0,1.51832546]
[1756569817877,0.75647617,108940.0,108930.0,0.68060546]
[1756569818074,0.75647617,108940.0,108930.0,1.51832546]
[1756569818486,0.756476,108940.0,108930.0,0.68060546]
[1756569818784,0.756476,108940.0,108930.0,1.51832546]
[1756569819580,1.06636373,108940.0,108930.0,0.37071773]
[1756569819781,1.81997846,108940.0,108930.0,0.30988773]
[1756569819986,1.8859178,108940.0,108930.0,0.30988773]
[1756569820482,1.9203078,108940.0,108930.0,0.30988773]
[1756569824187,1.90392855,108940.0,108930.0,0.30988773]
[1756569824384,1.90391456,108940.0,108930.0,0.30988773]
[1756569825285,1.86952456,108940.0,108920.0,1.14760773]
[1756569825588,0.39519,108930.0,108920.0,1.14760773]
[1756569825785,0.43887726,108930.0,108920.0,0.30988773]
[1756569826890,0.43887726,108930.0,108920.0,0.61977546]
[1756569829287,0.07807726,108930.0,108920.0,0.92966319]
[1756569830495,0.07807726,108930.0,108920.0,0.61977546]
[1756569833293,0.43887726,108930.0,108920.0,0.61977546]
[1756569838595,0.43887726,108930.0,108920.0,1.45753546]
[1756569838802,0.48843735,108930.0,108920.0,0.61977546]
[1756569847108,0.05968,108920.0,108910.0,0.83776]
[1756569847406,0.51047335,108920.0,108910.0,0.83776]
[1756569848205,0.51047335,108920.0,108910.0,1.45853546]
[1756569848810,0.51047335,108920.0,108910.0,1.46053546]
[1756569850507,0.5194736,108920.0,108910.0,1.46053546]
[1756569852709,0.5194736,108920.0,108910.0,0.31288773]
[1756569854407,0.5194736,108920.0,108910.0,0.30988773]
[1756569856209,0.03585,108910.0,108900.0,0.8378]
[1756569856409,0.07946726,108910.0,108900.0,1.83757546]
[1756569857414,0.07946726,108910.0,108900.0,1.83857546]
[1756569858014,0.07946726,108910.0,108900.0,1.84057546]
[1756569859814,0.44026726,108910.0,108900.0,1.84057546]
[1756569860517,0.44026726,108910.0,108900.0,2.15046319]
[1756569862315,0.07946726,108910.0,108900.0,2.15046319]
[1756569867319,0.04361726,108910.0,108900.0,2.15046319]
[1756569871923,0.04361726,108910.0,108900.0,1.31266319]
[1756569872225,0.04361726,108910.0,108900.0,2.15046319]
[1756569873023,0.04361726,108910.0,108900.0,2.14946319]
[1756569874623,0.04361726,108910.0,108900.0,2.14746319]
[1756569876727,0.01978726,108910.0,108900.0,2.14746319]
[1756569878329,0.06934735,108910.0,108900.0,2.14746319]
[1756569878827,0.04956009,108910.0,108900.0,2.14746319]
[1756569881022,0.01978726,108910.0,108900.0,2.14746319]
[1756569882130,0.04956009,108910.0,108900.0,2.14746319]
[1756569882324,0.4969536,108920.0,108900.0,2.14746319]
[1756569882531,0.5199636,108920.0,108910.0,0.61977546]
[1756569886736,0.5199636,108920.0,108910.0,1.45753546]
[1756569890644,0.5199636,108920.0,108910.0,0.61977546]
[1756569890842,0.5199636,108920.0,108910.0,1.45753546]
[1756569891037,0.5199636,108920.0,108910.0,0.61977546]
[1756569891237,0.5199636,108920.0,108910.0,1.45753546]
[1756569894443,0.47040351,108920.0,108910.0,1.45753546]
[1756569895849,0.52001843,108920.0,108910.0,1.45753546]
[1756569898647,0.52001843,108920.0,108910.0,0.61977546]
[1756569898946,0.52001843,108920.0,108910.0,1.45753546]
[1756569905351,0.52001843,108920.0,108910.0,0.61977546]
[1756569905551,0.52001843,108920.0,108910.0,1.45745546]
[1756569905852,0.52001843,108920.0,108910.0,0.61977546]
[1756569906049,0.52001843,108920.0,108910.0,1.45745546]
[1756569906653,0.47040351,108920.0,108910.0,1.45745546]
[1756569908056,0.52001946,108920.0,108910.0,1.45745546]
[1756569912958,0.47040351,108920.0,108910.0,1.45745546]
[1756569915464,0.5200195,108920.0,108910.0,1.45745546]
[1756569915863,0.5200195,108920.0,108910.0,0.61977546]
[1756569916062,0.5200195,108920.0,108910.0,1.45741546]
[1756569920368,0.4598495,108920.0,108910.0,1.45741546]
[1756569920770,0.41023351,108920.0,108910.0,1.45741546]
[1756569921067,0.44448351,108920.0,108910.0,1.45741546]
[1756569921468,0.46788351,108920.0,108910.0,0.8376]
[1756569921672,0.46788351,108920.0,108910.0,1.45737546]
[1756569924875,0.46788351,108920.0,108890.0,0.43579663]
[1756569925077,0.07301388,108910.0,108900.0,0.98804773]
[1756569925279,0.09280114,108910.0,108900.0,0.98804773]
[1756569926077,0.09280114,108910.0,108900.0,1.60782319]
[1756569928570,0.04318726,108910.0,108900.0,1.60782319]
[1756569930284,0.01978726,108910.0,108900.0,1.60782319]
[1756569931485,0.04961388,108910.0,108900.0,1.60782319]
[1756569931778,0.06940114,108910.0,108900.0,1.60782319]
[1756569932689,0.06927612,108910.0,108900.0,1.60782319]
[1756569934688,0.43007612,108910.0,108900.0,1.60782319]
[1756569937485,0.38046224,108910.0,108900.0,1.60782319]
[1756569943796,0.01966224,108910.0,108900.0,1.60782319]
[1756569944095,0.04961388,108910.0,108900.0,1.60782319]
[1756569944294,0.07319388,108910.0,108900.0,0.92966319]
[1756569944484,0.48906612,108910.0,108900.0,1.45733546]
[1756569944687,0.70365612,108910.0,108900.0,1.45733546]
[1756569944887,0.70365612,108910.0,108900.0,0.61977546]
[1756569945092,0.70365612,108910.0,108900.0,1.14744773]
[1756569945093,1.01354385,108910.0,108900.0,1.14744773]
[1756569945290,1.01354385,108910.0,108890.0,0.91255663]
[1756569945291,0.07912818,108900.0,108890.0,0.91255663]
[1756569945595,0.50916684,108900.0,108890.0,1.14744773]
[1756569946484,0.50916684,108900.0,108890.0,1.22009367]
[1756569948696,0.45959042,108900.0,108890.0,1.22009367]
[1756569948891,0.45959042,108900.0,108890.0,0.91020594]
[1756569949093,0.45959042,108900.0,108890.0,1.22009367]
[1756569949392,0.45959042,108900.0,108890.0,0.38253367]
[1756569949594,0.45959042,108900.0,108890.0,1.22013367]
[1756569951899,0.45959042,108900.0,108890.0,0.38253367]
[1756569952098,0.45959042,108900.0,108890.0,1.22013367]
[1756569954904,0.45959042,108900.0,108890.0,0.91024594]
[1756569955103,0.45959042,108900.0,108890.0,1.22013367]
[1756569955504,0.50916684,108900.0,108890.0,1.22013367]
[1756569956302,0.50916684,108900.0,108890.0,0.38253367]
[1756569956501,0.50916684,108900.0,108890.0,1.22017367]
[1756569957909,0.50916684,108900.0,108890.0,0.38253367]
[1756569958108,0.50916684,108900.0,108890.0,1.22017367]
[1756569958404,0.50916684,108900.0,108890.0,0.91028594]
[1756569958801,0.50916684,108900.0,108890.0,1.22017367]
[1756569959101,0.50916684,108900.0,108890.0,0.38253367]
[1756569959405,0.50916684,108900.0,108890.0,1.22017367]
[1756569960108,0.50916684,108900.0,108890.0,1.14752773]
[1756569962706,0.50916684,108900.0,108890.0,0.83764]
[1756569962907,0.50916684,108900.0,108890.0,1.14752773]
[1756569963307,0.50916684,108900.0,108890.0,0.83764]
[1756569963504,0.50916684,108900.0,108890.0,1.14752773]
[1756569964012,0.50916684,108900.0,108890.0,0.83764]
[1756569964310,0.50916684,108900.0,108890.0,0.30988773]
[1756569964506,0.50916684,108900.0,108890.0,1.14752773]
[1756569966313,0.50916684,108900.0,108890.0,0.30988773]
[1756569966913,0.81905457,108900.0,108890.0,0.30988773]
[1756569967410,0.50916684,108900.0,108890.0,0.30988773]
[1756569967818,0.81905457,108900.0,108890.0,0.30988773]
[1756569968911,0.50916684,108900.0,108890.0,0.30988773]
[1756569969111,0.03434,108890.0,108880.0,1.2378842]
[1756569969318,0.41480224,108890.0,108880.0,1.54777193]
[1756569970617,0.43762224,108890.0,108880.0,0.09035647]
[1756569970817,0.43762224,108890.0,108880.0,1.54777193]
[1756569971813,0.71316997,108890.0,108880.0,0.30988773]
[1756569972117,0.79708639,108890.0,108880.0,0.61977546]
[1756569974121,0.03434,108880.0,108870.0,0.83764]
[1756569974419,0.45805677,108880.0,108870.0,1.81741546]
[1756569975109,0.45805677,108880.0,108870.0,0.97977546]
[1756569975312,0.50763319,108880.0,108870.0,2.06741546]
[1756569975514,0.50763319,108880.0,108870.0,2.14143395]
[1756569975918,0.50763319,108880.0,108870.0,1.83354622]
[1756569976222,0.50763319,108880.0,108870.0,0.68601849]
[1756569976223,0.45805677,108880.0,108870.0,0.68601849]
[1756569976417,0.50763319,108880.0,108870.0,0.38590622]
[1756569976618,0.50763319,108880.0,108870.0,1.22354622]
[1756569976818,0.51675767,108880.0,108870.0,1.22354622]
[1756569977021,0.51675767,108880.0,108870.0,0.38590622]
[1756569977221,0.51675767,108880.0,108870.0,0.002]
[1756569977417,0.51675767,108880.0,108870.0,0.31188773]
[1756569978316,0.8266454,108880.0,108870.0,0.002]
[1756569978512,0.51675767,108880.0,108870.0,0.31188773]
[1756569980321,0.51675767,108880.0,108870.0,0.002]
[1756569980518,0.8266454,108880.0,108870.0,0.31188773]
[1756569982017,0.8266454,108880.0,108870.0,0.002]
[1756569982222,0.8266454,108880.0,108870.0,0.31188773]
[1756569983420,0.8266454,108880.0,108870.0,0.30988773]
[1756569984423,0.51675767,108880.0,108870.0,0.30988773]
[1756569985311,0.03434,108870.0,108860.0,1.14756773]
[1756569985512,0.05400224,108870.0,108860.0,1.45745546]
[1756569985717,0.05400224,108870.0,108860.0,1.47623668]
[1756569985923,0.05400224,108870.0,108860.0,2.03612441]
[1756569985924,0.01966224,108870.0,108860.0,2.03612441]
[1756569986123,0.01966224,108870.0,108860.0,2.39692441]
[1756569986619,0.01966224,108870.0,108860.0,2.39892441]
[1756569988423,0.05400224,108870.0,108860.0,2.08903668]